bitfinex/quotes_BTCUSD_20260311
["timestamp","ask_amount","ask_price","bid_price","bid_amount"]
[1773232763960,0.00023,69375.0,69351.0,0.10873682]
[1773232764501,7.5e-05,69357.0,69351.0,0.10873682]
[1773232765851,7.5e-05,69357.0,69352.0,0.07209597]
[1773232766053,7.5e-05,69357.0,69353.0,0.10873682]
[1773232766410,0.00023,69375.0,69353.0,0.10873682]
[1773232768528,0.00023,69375.0,69354.0,0.07209389]
[1773232768749,0.00023,69375.0,69355.0,0.10873682]
[1773232769150,0.00029501,69378.0,69355.0,0.10873682]
[1773232769468,0.00029501,69378.0,69356.0,0.10873682]
[1773232770056,0.0003937,69381.0,69356.0,0.10873682]
[1773232770261,0.0003937,69381.0,69355.0,0.17238362]
[1773232770262,1e-08,69388.0,69362.0,0.17238362]
[1773232770477,7.5e-05,69396.0,69360.0,0.08729131]
[1773232770478,7.5e-05,69396.0,69371.0,0.10873682]
[1773232770681,7.5e-05,69396.0,69373.0,0.10873682]
[1773232771083,7.5e-05,69405.0,69377.0,0.17238362]
[1773232771325,0.1118141,69404.0,69379.0,0.10873682]
[1773232771735,0.00011202,69404.0,69379.0,0.10873682]
[1773232772556,0.00011202,69404.0,69379.0,0.10973682]
[1773232772785,0.00011202,69404.0,69380.0,0.07206687]
[1773232772786,0.1118141,69403.0,69380.0,0.07206687]
[1773232772991,0.1118141,69403.0,69379.0,0.001]
[1773232772992,0.1118141,69399.0,69375.0,0.00023]
[1773232773599,0.1118141,69399.0,69379.0,0.001]
[1773232773953,0.1118141,69399.0,69375.0,0.07230174]
[1773232774572,0.1118141,69399.0,69375.0,0.00023]
[1773232774801,0.07204818,69398.0,69375.0,0.07230161]
[1773232774957,0.1118141,69397.0,69375.0,0.00023]
[1773232775365,0.1118141,69397.0,69374.0,0.07035216]
[1773232776445,0.1118141,69397.0,69372.0,0.07207472]
[1773232777956,0.1118141,69395.0,69367.0,0.10873682]
[1773232778260,0.07205026,69396.0,69358.0,0.18082655]
[1773232778261,0.08729131,69390.0,69358.0,0.18082655]
[1773232778456,0.1118141,69388.0,69359.0,0.10873682]
[1773232779696,0.1128141,69388.0,69359.0,0.10873682]
[1773232780232,0.1118141,69386.0,69361.0,0.10873682]
[1773232780437,0.1118141,69386.0,69354.0,0.07241565]
[1773232780657,0.1118141,69386.0,69355.0,0.07209276]
[1773232780866,0.1118141,69386.0,69356.0,0.10873682]
[1773232781531,0.1126641,69386.0,69356.0,0.10873682]
[1773232781735,0.1125891,69386.0,69356.0,0.10873682]
[1773232781938,0.1115891,69386.0,69383.0,7.5e-05]
[1773232782128,0.1115891,69386.0,69361.0,0.10873682]
[1773232782129,0.1118141,69384.0,69355.0,0.18082958]
[1773232782326,0.1118141,69384.0,69355.0,0.07209276]
[1773232782527,0.1118141,69384.0,69365.0,7.5e-05]
[1773232783270,0.1118141,69384.0,69357.0,7.5e-05]
[1773232783470,0.1118141,69379.0,69357.0,7.5e-05]
[1773232783843,0.14342608,69379.0,69357.0,7.5e-05]
[1773232784039,0.1118141,69377.0,69357.0,7.5e-05]
[1773232784415,0.14342608,69377.0,69357.0,7.5e-05]
[1773232784613,0.1118141,69377.0,69357.0,7.5e-05]
[1773232784972,0.1118141,69376.0,69357.0,7.5e-05]
[1773232785986,0.1118141,69376.0,69358.0,0.0002]
[1773232786213,0.1118141,69374.0,69358.0,0.0002]
[1773232787307,0.1118141,69374.0,69358.0,0.10893682]
[1773232787486,0.1128141,69374.0,69358.0,0.10893682]
[1773232787691,0.07307107,69376.0,69358.0,0.10893682]
[1773232787906,0.07205757,69389.0,69358.0,0.10893682]
[1773232788107,0.07216957,69389.0,69358.0,0.10893682]
[1773232788307,0.000112,69389.0,69360.0,0.10873682]
[1773232788820,0.001,69374.0,69360.0,0.10873682]
[1773232789227,0.1118141,69388.0,69360.0,0.10873682]
[1773232789436,0.1118141,69379.0,69358.0,0.0002]
[1773232789805,0.1118141,69379.0,69359.0,0.07208869]
[1773232790218,0.07206895,69378.0,69358.0,0.0002]
[1773232790422,0.10869103,69377.0,69358.0,0.0002]
[1773232790645,0.10869103,69377.0,69358.0,0.0012]
[1773232791011,0.10869103,69377.0,69358.0,0.0002]
[1773232791376,0.07206895,69378.0,69358.0,0.0002]
[1773232791614,0.10869103,69376.0,69358.0,0.0002]
[1773232792065,0.08729131,69370.0,69354.0,0.0003228]
[1773232792257,0.14355913,69377.0,69354.0,0.07241662]
[1773232792258,0.10869103,69369.0,69354.0,0.07241662]
[1773232792491,0.07207934,69368.0,69354.0,0.07241662]
[1773232792704,0.07207876,69369.0,69355.0,0.10675899]
[1773232793109,0.07207207,69375.0,69359.0,0.0002]
[1773232793550,0.07207207,69375.0,69360.0,0.10675899]
[1773232793977,0.001,69370.0,69360.0,0.10675899]
[1773232794542,0.07207207,69375.0,69361.0,0.07208661]
[1773232794746,0.07207207,69375.0,69362.0,0.10675899]
[1773232795009,0.07214452,69378.0,69362.0,0.10675899]
[1773232795785,7.5e-05,69374.0,69362.0,0.10675899]
[1773232796190,7.5e-05,69374.0,69362.0,0.10775899]
[1773232796744,7.5e-05,69370.0,69363.0,0.07208454]
[1773232797164,7.5e-05,69374.0,69364.0,0.10675899]
[1773232797778,7.5e-05,69365.0,69364.0,0.10675899]
[1773232797985,7.5e-05,69365.0,69363.0,0.07208454]
[1773232798184,7.5e-05,69374.0,69364.0,0.10675899]
[1773232798574,0.09904149,69374.0,69363.0,0.07208454]
[1773232798746,7.5e-05,69374.0,69365.0,0.07208246]
[1773232798952,0.09896649,69373.0,69359.0,0.07228842]
[1773232799306,0.09896649,69373.0,69359.0,0.07228829]
[1773232800560,0.09996649,69373.0,69359.0,0.07228829]
[1773232801086,0.17104167,69372.0,69359.0,0.000336]
[1773232801618,0.09896649,69371.0,69354.0,0.07209285]
[1773232801822,0.09896649,69371.0,69354.0,0.07216284]
[1773232802148,0.09896649,69371.0,69354.0,0.17427996]
[1773232802798,0.09896649,69371.0,69354.0,0.10218711]
[1773232803208,0.07207726,69370.0,69355.0,0.07209285]
[1773232803415,0.17104375,69370.0,69355.0,0.07209285]
[1773232803618,0.09896649,69369.0,69352.0,0.000275]
[1773232803819,0.09907844,69369.0,69352.0,0.000275]
[1773232804020,0.09896649,69368.0,69352.0,0.000275]
[1773232804225,0.09896649,69368.0,69352.0,0.07237078]
[1773232805075,0.09996649,69368.0,69352.0,0.07237078]
[1773232805380,0.07207414,69373.0,69353.0,0.10211712]
[1773232805585,0.07207414,69373.0,69353.0,0.10222907]
[1773232805791,0.001,69368.0,69353.0,0.10222907]
[1773232806001,0.09896649,69368.0,69353.0,0.00011195]
[1773232806218,0.11529919,69404.0,69359.0,0.10211712]
[1773232806444,0.07233583,69404.0,69376.0,0.10211712]
[1773232806649,0.09896649,69403.0,69376.0,0.10211712]
[1773232807095,0.09896649,69403.0,69382.0,0.1148822]
[1773232807295,0.07204403,69402.0,69384.0,0.07206272]
[1773232807555,0.09896649,69401.0,69385.0,0.14360275]
[1773232807913,0.09896649,69401.0,69386.0,0.14360275]
[1773232808055,0.09896649,69401.0,69376.0,0.28906963]
[1773232808265,0.09896649,69401.0,69376.0,0.17418743]
[1773232808458,0.09896649,69401.0,69377.0,0.10211712]
[1773232809565,0.09896649,69399.0,69379.0,0.10211712]
[1773232810383,0.0720461,69400.0,69379.0,0.10211712]
[1773232811301,0.07186396,69400.0,69379.0,0.10211712]
[1773232811706,0.07186396,69400.0,69381.0,0.10211712]
[1773232812366,0.07186396,69400.0,69383.0,0.10211712]
[1773232812663,0.07186396,69400.0,69385.0,0.10211712]
[1773232812884,0.07186396,69400.0,69386.0,0.143308]
[1773232813025,0.07186396,69400.0,69387.0,0.143308]
[1773232813226,0.07186396,69400.0,69388.0,0.143308]
[1773232813450,0.07186396,69400.0,69389.0,0.143308]
[1773232813622,0.07186396,69400.0,69390.0,0.143308]
[1773232813822,0.07186396,69400.0,69385.0,0.17417861]
[1773232814020,0.07186396,69400.0,69386.0,0.1432712]
[1773232814296,0.07186396,69400.0,69387.0,0.1432712]
[1773232814499,0.07186396,69400.0,69388.0,0.1432712]
[1773232814656,0.08087086,69400.0,69389.0,0.1432712]
[1773232814859,0.08187086,69400.0,69386.0,0.10211712]
[1773232815057,0.08187086,69400.0,69387.0,0.14325399]
[1773232815306,0.08187086,69400.0,69388.0,0.14325399]
[1773232815519,0.08187086,69400.0,69389.0,0.14325399]
[1773232815685,0.08187086,69400.0,69390.0,0.14325399]
[1773232816011,0.08205342,69400.0,69391.0,0.14321482]
[1773232816208,0.08105342,69400.0,69392.0,0.10211712]
[1773232816724,0.08105342,69400.0,69386.0,0.07206043]
[1773232816898,0.08105342,69400.0,69387.0,0.14321624]
[1773232817100,0.08105342,69400.0,69388.0,0.14321624]
[1773232817302,0.08105342,69400.0,69386.0,0.07206048]
[1773232817508,0.08105342,69400.0,69387.0,0.14323068]
[1773232817714,0.08105342,69400.0,69388.0,0.14323068]
[1773232817917,0.08105342,69400.0,69379.0,0.07206744]
[1773232817918,0.09896649,69397.0,69379.0,0.07206744]
[1773232818281,0.09896649,69397.0,69380.0,0.10211712]
[1773232818912,0.07204818,69398.0,69380.0,0.10211712]
[1773232819717,0.17155638,69398.0,69380.0,0.10211712]
[1773232820431,0.17155638,69398.0,69396.0,7.5e-05]
[1773232820594,0.17155638,69398.0,69381.0,0.07206583]
[1773232820595,0.07204818,69398.0,69391.0,7.5e-05]
[1773232821880,0.07204818,69398.0,69387.0,7.5e-05]
[1773232822079,0.0995082,69397.0,69387.0,7.5e-05]
[1773232822420,0.07205026,69396.0,69387.0,7.5e-05]
[1773232824196,0.07205026,69396.0,69388.0,0.10669616]
[1773232824320,0.00022001,69408.0,69388.0,0.10669616]
[1773232824520,0.07204387,69403.0,69390.0,0.10669616]
[1773232825278,0.07215624,69402.0,69390.0,0.10669616]
[1773232825608,0.07215624,69402.0,69387.0,7.5e-05]
[1773232825835,0.0995082,69401.0,69387.0,7.5e-05]
[1773232826740,0.0995082,69399.0,69387.0,7.5e-05]
[1773232827070,0.0720461,69400.0,69387.0,7.5e-05]
[1773232827293,0.00011199,69402.0,69388.0,0.10669616]
[1773232827627,0.001,69401.0,69388.0,0.10669616]
[1773232827815,0.07215626,69402.0,69388.0,0.10669616]
[1773232828821,0.001,69399.0,69390.0,0.10669616]
[1773232829400,0.07215626,69402.0,69390.0,0.10669616]
[1773232829799,0.07215626,69402.0,69391.0,0.1432177]
[1773232830048,0.07215626,69402.0,69390.0,0.10669616]
[1773232830258,0.07215626,69402.0,69391.0,0.14321766]
[1773232830551,0.07215626,69402.0,69387.0,7.5e-05]
[1773232830552,7.5e-05,69396.0,69387.0,7.5e-05]
[1773232830747,7.5e-05,69396.0,69388.0,0.14324261]
[1773232830950,7.5e-05,69396.0,69389.0,0.14324261]
[1773232831156,7.5e-05,69396.0,69387.0,7.5e-05]
[1773232831157,7.5e-05,69396.0,69390.0,0.14324261]
[1773232831318,7.5e-05,69396.0,69391.0,0.001]
[1773232831751,7.5e-05,69396.0,69388.0,0.10669616]
[1773232831956,7.5e-05,69396.0,69389.0,0.1432663]
[1773232832216,7.5e-05,69396.0,69390.0,0.1432663]
[1773232832353,7.5e-05,69396.0,69387.0,7.5e-05]
[1773232832553,0.0995832,69396.0,69388.0,0.14333278]
[1773232832778,0.0720513,69395.0,69389.0,0.14333278]
[1773232832982,0.0720513,69395.0,69387.0,7.5e-05]
[1773232833328,0.0720513,69395.0,69388.0,0.14335791]
[1773232833544,0.0720513,69395.0,69389.0,0.14335791]
[1773232833737,0.0720513,69395.0,69390.0,0.14335791]
[1773232833892,0.0720513,69395.0,69387.0,0.07213453]
[1773232834096,0.0720513,69395.0,69388.0,0.14343036]
[1773232834273,0.0720513,69395.0,69389.0,0.14343036]
[1773232834475,0.0721256,69396.0,69390.0,0.14343036]
[1773232834680,0.00011199,69402.0,69393.0,0.10669616]
[1773232834879,0.00022001,69403.0,69395.0,0.10669616]
[1773232835087,0.0995082,69414.0,69392.0,0.07205441]
[1773232835088,0.07225846,69408.0,69397.0,0.10669616]
[1773232835311,0.07225846,69408.0,69398.0,0.14343036]
[1773232835552,0.07225846,69408.0,69399.0,0.14343036]
[1773232835738,0.07225846,69408.0,69395.0,0.10669616]
[1773232836507,0.07325846,69408.0,69395.0,0.10669616]
[1773232837155,0.07225846,69408.0,69395.0,0.10669616]
[1773232837718,0.07203845,69408.0,69395.0,0.17874743]
[1773232837941,0.07203845,69408.0,69395.0,0.10669616]
[1773232838218,0.09601664,69407.0,69393.0,0.07205254]
[1773232838614,0.09601664,69407.0,69392.0,0.18710268]
[1773232838837,0.16805652,69406.0,69392.0,0.18710251]
[1773232839187,0.07203988,69406.0,69393.0,0.10669616]
[1773232839369,0.07203988,69407.0,69393.0,0.10669616]
[1773232839531,0.14714193,69417.0,69392.0,0.18710251]
[1773232839532,0.16197802,69423.0,69401.0,0.10669616]
[1773232839741,0.07202954,69416.0,69401.0,0.11504846]
[1773232839939,0.07225088,69415.0,69402.0,0.10669616]
[1773232840164,0.07225065,69415.0,69403.0,0.10669616]
[1773232840368,7.5e-05,69422.0,69405.0,0.10669616]
[1773232840577,0.01086495,69424.0,69411.0,0.11504846]
[1773232840913,0.0722511,69425.0,69413.0,0.10669616]
[1773232841156,0.0723261,69425.0,69411.0,0.11504846]
[1773232841329,0.09715053,69424.0,69400.0,0.07212096]
[1773232841524,0.09715053,69424.0,69400.0,0.07212045]
[1773232841748,0.09715053,69424.0,69401.0,0.10669616]
[1773232842164,0.09715053,69424.0,69400.0,7.5e-05]
[1773232842456,0.09773627,69424.0,69400.0,7.5e-05]
[1773232842820,0.07804734,69419.0,69400.0,7.5e-05]
[1773232843014,0.09773627,69416.0,69400.0,7.5e-05]
[1773232843215,0.07202846,69417.0,69400.0,7.5e-05]
[1773232843438,0.09741621,69415.0,69400.0,7.5e-05]
[1773232843845,0.09741621,69415.0,69391.0,0.07213016]
[1773232844223,0.09741621,69415.0,69391.0,0.17882632]
[1773232844459,0.09741621,69415.0,69391.0,0.10677116]
[1773232844606,0.09741621,69415.0,69391.0,7.5e-05]
[1773232844812,0.09741621,69415.0,69391.0,0.07213029]
[1773232845017,0.0995082,69413.0,69391.0,7.5e-05]
[1773232845218,0.0995082,69412.0,69392.0,0.10669616]
[1773232846698,7.5e-05,69411.0,69392.0,0.10669616]
[1773232846928,0.0995832,69411.0,69392.0,0.10669616]
[1773232847695,7.5e-05,69400.0,69393.0,0.07205337]
[1773232848055,7.5e-05,69400.0,69394.0,0.10669616]
[1773232848423,0.07203572,69410.0,69394.0,0.10669616]
[1773232848606,7.5e-05,69409.0,69394.0,0.10669616]
[1773232849389,0.07203572,69410.0,69394.0,0.10769616]
[1773232849590,0.07196072,69410.0,69394.0,0.10769616]
[1773232849930,0.07203572,69411.0,69409.0,7.5e-05]
[1773232850596,0.1731602,69411.0,69409.0,7.5e-05]
[1773232851027,0.1731602,69411.0,69405.0,7.5e-05]
[1773232851401,0.07203572,69411.0,69405.0,7.5e-05]
[1773232851842,0.07202742,69418.0,69405.0,7.5e-05]
[1773232852017,0.10312448,69411.0,69405.0,7.5e-05]
[1773232852321,0.001,69411.0,69398.0,0.09951759]
[1773232852494,0.21578681,69418.0,69398.0,0.09951759]
[1773232852721,0.00022001,69411.0,69398.0,0.09951759]
[1773232853110,0.10112448,69410.0,69392.0,0.07225337]
[1773232853299,0.10112448,69410.0,69392.0,0.0002]
[1773232853504,0.10112448,69409.0,69383.0,0.07213836]
[1773232853703,0.10112448,69409.0,69385.0,0.07226142]
[1773232853917,0.10112448,69406.0,69387.0,0.07233453]
[1773232854416,0.10112448,69405.0,69387.0,0.17185212]
[1773232854613,0.10112448,69405.0,69388.0,0.09951759]
[1773232855272,0.10112448,69405.0,69392.0,0.001]
[1773232855401,0.10112448,69405.0,69388.0,0.09951759]
[1773232856028,7.5e-05,69396.0,69389.0,0.17157512]
[1773232856458,7.5e-05,69396.0,69390.0,0.09951759]
[1773232858019,7.5e-05,69396.0,69392.0,0.10214978]
[1773232858999,7.5e-05,69396.0,69390.0,0.001]
[1773232859472,7.5e-05,69396.0,69388.0,0.10214978]
[1773232860033,7.5e-05,69396.0,69390.0,0.10214978]
[1773232860261,7.5e-05,69396.0,69390.0,0.10314978]
[1773232860435,0.0964104,69403.0,69390.0,0.001]
[1773232860647,0.0964104,69402.0,69390.0,0.001]
[1773232860852,0.0964104,69402.0,69385.0,0.0002]
[1773232861057,0.0964104,69402.0,69385.0,0.07226161]
[1773232861290,0.0964104,69402.0,69379.0,0.07236079]
[1773232861291,0.0964104,69402.0,69379.0,0.0002938]
[1773232861492,0.14375939,69403.0,69379.0,0.0002938]
[1773232861493,0.0964104,69399.0,69379.0,0.0002938]
[1773232861695,0.0964104,69399.0,69380.0,0.07226628]
[1773232861944,0.0964104,69399.0,69380.0,0.07226637]
[1773232862160,0.0964104,69398.0,69385.0,0.0002]
[1773232862494,0.14375939,69398.0,69385.0,0.10234978]
[1773232862692,0.16845754,69399.0,69385.0,0.10234978]
[1773232862923,0.24016979,69398.0,69385.0,0.10234978]
[1773232863131,0.0964104,69397.0,69385.0,0.0002]
[1773232864368,0.0964104,69395.0,69385.0,0.0002]
[1773232864567,0.14375939,69395.0,69380.0,1e-08]
[1773232864787,0.0964104,69394.0,69380.0,1e-08]
[1773232865111,0.0964104,69394.0,69380.0,0.0720663]
[1773232865380,0.0964104,69394.0,69380.0,1e-08]
[1773232866711,0.07205337,69393.0,69380.0,0.10214979]
[1773232867439,0.07205337,69395.0,69380.0,0.10214979]
[1773232867734,0.0964104,69399.0,69380.0,0.10214979]
[1773232867735,0.21571013,69398.0,69380.0,0.10214979]
[1773232867882,0.0964104,69397.0,69380.0,0.10214979]
[1773232868394,7.5e-05,69391.0,69380.0,0.10214979]
[1773232868596,7.5e-05,69391.0,69381.0,0.07206583]
[1773232868814,7.5e-05,69391.0,69381.0,0.17421561]
[1773232869024,7.5e-05,69391.0,69382.0,0.10214978]
[1773232870693,7.5e-05,69391.0,69383.0,0.10214978]
[1773232871150,7.5e-05,69391.0,69380.0,0.07206688]
[1773232871346,7.5e-05,69391.0,69380.0,1e-08]
[1773232871689,0.0964104,69394.0,69380.0,0.07206674]
[1773232873257,0.0964104,69392.0,69377.0,0.0001663]
[1773232873509,0.0964104,69392.0,69362.0,1e-08]
[1773232873510,0.0964104,69381.0,69362.0,1e-08]
[1773232873802,0.0964104,69380.0,69362.0,0.07208531]
[1773232874036,0.11495622,69384.0,69362.0,0.07208531]
[1773232874267,0.1437616,69384.0,69362.0,0.07208531]
[1773232874485,0.13936572,69387.0,69362.0,0.07208531]
[1773232875344,0.13936572,69385.0,69362.0,0.07208531]
[1773232875761,0.1035081,69385.0,69362.0,0.07208531]
[1773232875882,0.1035081,69384.0,69362.0,0.07208531]
[1773232877298,0.1035081,69382.0,69362.0,0.07208531]
[1773232877432,0.1035081,69381.0,69362.0,0.07208531]
[1773232877645,0.1035081,69381.0,69362.0,1e-08]
[1773232879456,0.10328119,69379.0,69362.0,1e-08]
[1773232879672,0.10328119,69378.0,69362.0,1e-08]
[1773232879883,0.10328119,69378.0,69362.0,0.00020001]
[1773232880898,0.10428119,69378.0,69362.0,0.00020001]
[1773232881131,0.10528119,69378.0,69362.0,0.00020001]
[1773232881338,0.10298718,69376.0,69362.0,0.00020001]
[1773232881548,0.10298718,69376.0,69362.0,1e-08]
[1773232881953,0.10251436,69375.0,69362.0,1e-08]
[1773232882365,7.5e-05,69374.0,69362.0,1e-08]
[1773232882568,0.10251436,69373.0,69362.0,1e-08]
[1773232883176,0.08726324,69370.0,69355.0,1e-08]
[1773232883373,0.10251436,69367.0,69345.0,1e-08]
[1773232883528,0.11495622,69365.0,69345.0,1e-08]
[1773232883733,0.10251436,69364.0,69345.0,1e-08]
[1773232883926,0.11495622,69367.0,69345.0,1e-08]
[1773232884265,0.10216472,69366.0,69345.0,1e-08]
[1773232884769,0.1437616,69367.0,69345.0,1e-08]
[1773232884770,0.10216472,69364.0,69345.0,1e-08]
[1773232885577,0.07208454,69363.0,69345.0,1e-08]
[1773232885722,0.10216472,69362.0,69345.0,1e-08]
[1773232885942,0.1437616,69362.0,69345.0,1e-08]
[1773232886148,0.10184015,69362.0,69345.0,1e-08]
[1773232886353,0.10176515,69362.0,69345.0,1e-08]
[1773232886554,0.10184015,69361.0,69345.0,1e-08]
[1773232887306,0.10176515,69361.0,69345.0,1e-08]
[1773232887603,0.07208765,69360.0,69345.0,1e-08]
[1773232887762,0.10175267,69359.0,69345.0,1e-08]
[1773232889289,0.10128396,69358.0,69345.0,1e-08]
[1773232889698,0.10128396,69358.0,69337.0,1e-08]
[1773232889699,0.10128396,69356.0,69337.0,1e-08]
[1773232890029,0.07209077,69357.0,69337.0,1e-08]
[1773232890164,0.10662817,69356.0,69337.0,1e-08]
[1773232890779,0.07209077,69357.0,69334.0,0.0002]
[1773232891081,0.10662817,69356.0,69334.0,0.0002]
[1773232891632,0.10662817,69355.0,69334.0,0.0002]
[1773232891936,0.11023665,69353.0,69334.0,0.0002]
[1773232892291,0.07209389,69355.0,69335.0,0.08565031]
[1773232893069,0.11023665,69354.0,69335.0,0.08565031]
[1773232893861,0.07209493,69353.0,69336.0,0.07211261]
[1773232894192,0.18230272,69361.0,69336.0,0.07211261]
[1773232894418,0.07208661,69361.0,69336.0,0.07211261]
[1773232894894,7.5e-05,69339.0,69336.0,0.07211261]
[1773232895867,0.07208765,69360.0,69336.0,0.07211261]
[1773232897461,7.5e-05,69348.0,69336.0,0.07211261]
[1773232897869,0.07216265,69361.0,69336.0,0.07211261]
[1773232897870,7.5e-05,69361.0,69336.0,0.07211261]
[1773232898101,0.07215761,69365.0,69336.0,0.07211261]
[1773232899296,7.5e-05,69352.0,69336.0,0.07211261]
[1773232899918,7.5e-05,69352.0,69336.0,0.07311261]
[1773232900369,7.5e-05,69352.0,69336.0,0.07211261]
[1773232900655,7.5e-05,69352.0,69336.0,0.07311261]
[1773232900854,7.5e-05,69352.0,69336.0,0.07211261]
[1773232901462,7.5e-05,69352.0,69336.0,0.07411261]
[1773232902118,0.07208468,69363.0,69336.0,0.07411261]
[1773232902319,0.07208468,69363.0,69336.0,0.07511261]
[1773232902471,0.07208468,69363.0,69336.0,0.07531261]
[1773232902797,0.07208063,69367.0,69336.0,0.07531261]
[1773232902798,0.07207721,69371.0,69340.0,0.0873808]
[1773232902944,0.07215263,69370.0,69340.0,0.0873808]
[1773232903363,7.5e-05,69370.0,69340.0,0.0873808]
[1773232903644,7.5e-05,69370.0,69336.0,0.07231261]
[1773232903899,7.5e-05,69370.0,69336.0,0.07531261]
[1773232904106,7.5e-05,69370.0,69336.0,0.07331261]
[1773232904297,0.11018348,69370.0,69340.0,0.002]
[1773232904659,0.11018348,69370.0,69336.0,0.07331261]
[1773232905094,0.11018348,69370.0,69336.0,0.07231261]
[1773232905488,0.11018348,69370.0,69340.0,0.001]
[1773232905871,0.11018348,69370.0,69336.0,0.07431261]
[1773232906390,0.11008418,69368.0,69336.0,0.07331261]
[1773232906586,0.11008418,69368.0,69336.0,0.07431261]
[1773232906786,0.11008418,69368.0,69336.0,0.07231261]
[1773232906972,0.11008418,69368.0,69336.0,0.07331261]
[1773232907172,0.11008418,69368.0,69336.0,0.07531261]
[1773232907413,0.11008418,69368.0,69336.0,0.07331261]
[1773232907810,0.11006085,69368.0,69336.0,0.07531261]
[1773232908066,0.11006085,69366.0,69336.0,0.07531261]
[1773232908351,0.11006085,69366.0,69336.0,0.07431261]
[1773232908352,0.11006085,69363.0,69336.0,0.07431261]
[1773232908534,0.14365862,69363.0,69336.0,0.07431261]
[1773232908717,0.11006085,69364.0,69336.0,0.07431261]
[1773232908917,0.11006085,69363.0,69336.0,0.07231261]
[1773232909859,0.11006085,69363.0,69336.0,0.07331261]
[1773232910040,0.11006085,69363.0,69336.0,0.07231261]
[1773232910830,0.11003947,69361.0,69336.0,0.07231261]
[1773232911117,0.11003947,69360.0,69336.0,0.07231261]
[1773232911853,0.11002083,69360.0,69336.0,0.07231261]
[1773232912622,0.11102083,69360.0,69336.0,0.07231261]
[1773232913037,0.11002083,69358.0,69336.0,0.07231261]
[1773232913244,0.11002083,69357.0,69336.0,0.07231261]
[1773232914455,0.10994583,69357.0,69336.0,0.07231261]
[1773232914668,0.10987083,69357.0,69336.0,0.07231261]
[1773232914902,0.10987083,69357.0,69352.0,7.5e-05]
[1773232915108,0.10992187,69355.0,69344.0,7.5e-05]
[1773232915309,0.14365862,69355.0,69339.0,7.5e-05]
[1773232915606,0.07209181,69356.0,69336.0,0.0002]
[1773232915835,0.10992187,69354.0,69336.0,0.0002]
[1773232917342,0.11290089,69352.0,69336.0,0.0002]
[1773232917545,0.14365862,69352.0,69336.0,0.07231261]
[1773232917746,0.11290089,69351.0,69336.0,0.07231261]
[1773232919333,0.11287741,69349.0,69336.0,0.0002]
[1773232919530,0.11287741,69348.0,69336.0,0.0002]
[1773232920529,0.11287741,69348.0,69312.0,0.1384]
[1773232920740,0.11287741,69348.0,69305.0,7.5e-05]
[1773232920741,0.0873808,69340.0,69322.0,1e-08]
[1773232920909,0.11285987,69339.0,69322.0,1e-08]
[1773232921126,0.14365862,69339.0,69322.0,1e-08]
[1773232921332,0.11285987,69337.0,69322.0,1e-08]
[1773232921531,0.07211053,69338.0,69322.0,1e-08]
[1773232921532,0.11285987,69336.0,69322.0,1e-08]
[1773232922913,0.1112929,69334.0,69322.0,1e-08]
[1773232923118,0.1112929,69334.0,69316.0,0.07213261]
[1773232923119,0.1112929,69334.0,69314.0,0.07239635]
[1773232923288,0.1112929,69332.0,69314.0,0.0002619]
[1773232923491,0.07211573,69333.0,69311.0,0.06848316]
[1773232923707,0.07211573,69333.0,69308.0,0.07214128]
[1773232923708,0.1112929,69328.0,69309.0,0.07221548]
[1773232923958,0.14364439,69328.0,69301.0,0.15253465]
[1773232924129,0.14364439,69328.0,69301.0,0.07214903]
[1773232924331,0.11128192,69327.0,69301.0,0.07214903]
[1773232925505,0.11128192,69325.0,69301.0,0.07214903]
[1773232925741,0.11120485,69325.0,69301.0,0.07214903]
[1773232926118,0.11120485,69324.0,69301.0,0.07214903]
[1773232926939,0.11120485,69324.0,69285.0,0.0002619]
[1773232927141,0.11120485,69319.0,69296.0,0.07222912]
[1773232927338,0.11120485,69321.0,69296.0,0.07222912]
[1773232927556,0.07213029,69319.0,69296.0,7.5e-05]
[1773232927729,0.11120485,69318.0,69296.0,7.5e-05]
[1773232927934,0.11119372,69318.0,69296.0,7.5e-05]
[1773232928275,0.21545838,69319.0,69296.0,7.5e-05]
[1773232928276,0.11119372,69317.0,69296.0,7.5e-05]
[1773232929831,0.07213341,69316.0,69296.0,7.5e-05]
[1773232930081,0.11117774,69315.0,69296.0,7.5e-05]
[1773232930714,0.11110274,69315.0,69296.0,7.5e-05]
[1773232930907,0.11102774,69315.0,69296.0,7.5e-05]
[1773232932347,0.11108,69313.0,69296.0,0.000275]
[1773232932718,0.0873808,69310.0,69296.0,1e-08]
[1773232932974,0.11108,69309.0,69296.0,1e-08]
[1773232933495,0.11108,69309.0,69289.0,0.0002]
[1773232933957,0.07213549,69314.0,69279.0,7.5e-05]
[1773232933958,0.0873808,69300.0,69279.0,7.5e-05]
[1773232934154,0.11105981,69298.0,69279.0,7.5e-05]
[1773232934358,0.11105981,69296.0,69279.0,7.5e-05]
[1773232935541,0.11105981,69289.0,69266.0,7.5e-05]
[1773232936182,0.07216256,69288.0,69266.0,7.5e-05]
[1773232936393,0.11458501,69287.0,69266.0,7.5e-05]
[1773232937832,0.11458501,69287.0,69266.0,0.03630005]
[1773232938259,0.07216465,69286.0,69266.0,7.5e-05]
[1773232938426,0.07216465,69286.0,69267.0,0.03494121]
[1773232939043,0.16140425,69286.0,69267.0,0.03494121]
[1773232939379,0.0892396,69285.0,69267.0,0.03494121]
[1773232940302,0.07216465,69286.0,69268.0,0.0721834]
[1773232940303,0.001,69286.0,69268.0,0.0721834]
[1773232940635,0.08612225,69285.0,69266.0,0.07246027]
[1773232941111,0.08612225,69285.0,69268.0,0.03421373]
[1773232941317,0.08612225,69296.0,69268.0,0.03421373]
[1773232942093,7.5e-05,69274.0,69268.0,0.03421373]
[1773232942295,0.20883179,69299.0,69269.0,0.07218236]
[1773232942588,0.13668,69299.0,69272.0,0.03367149]
[1773232943004,0.20883129,69299.0,69272.0,0.03367149]
[1773232943200,0.07214187,69308.0,69275.0,0.00023]
[1773232943403,0.07214174,69308.0,69276.0,0.03367149]
[1773232943610,0.08612225,69307.0,69276.0,0.03367149]
[1773232944396,0.08612225,69305.0,69278.0,0.03313337]
[1773232944815,0.08612225,69305.0,69276.0,0.001]
[1773232945051,0.08612225,69305.0,69276.0,0.07417451]
[1773232945228,0.08619725,69305.0,69276.0,0.07317451]
[1773232945426,0.08619725,69305.0,69276.0,0.07317479]
[1773232945645,0.08612225,69304.0,69276.0,0.07317479]
[1773232946032,0.08612225,69295.0,69276.0,0.07217479]
[1773232946345,0.07215631,69294.0,69276.0,0.07217479]
[1773232946567,0.08612225,69293.0,69276.0,0.07217479]
[1773232946965,0.08612225,69290.0,69276.0,0.07217479]
[1773232947264,0.07215631,69294.0,69277.0,0.03260164]
[1773232947422,0.15827856,69294.0,69277.0,0.03260164]
[1773232947868,0.08612225,69293.0,69276.0,0.07217479]
[1773232948046,0.08612225,69293.0,69276.0,0.07337479]
[1773232948417,0.0721584,69292.0,69276.0,0.07237479]
[1773232948618,0.0722334,69292.0,69277.0,0.001]
[1773232949077,0.15835565,69292.0,69277.0,0.001]
[1773232949485,7.5e-05,69287.0,69278.0,0.03181969]
[1773232949648,7.5e-05,69287.0,69277.0,0.002]
[1773232949852,7.5e-05,69287.0,69276.0,0.07237479]
[1773232950054,7.5e-05,69287.0,69276.0,0.07337479]